Workbook

Sheet 1全
A1: 2025年10月农村低保“一卡通”补助市镇分担发放表
A2: 序号 | B2: 行政区划 | C2: 户数 | D2: 人数 | E2: 农村低保 | H2: 备注
E3: 小计 | F3: 市负担70% | G3: 镇负担30%
A4: 1 | B4: 汇龙镇 | C4: 198 | D4: 253 | E4: 220239.00 | F4: =E4*0.7 -> 154167.30 | G4: =E4*0.3 -> 66071.70
A5: 2 | B5: 南阳镇 | C5: 360 | D5: 478 | E5: 421912.00 | F5: =E5*0.7 -> 295338.40 | G5: =E5*0.3 -> 126573.60
A6: 3 | B6: 北新镇 | C6: 309 | D6: 381 | E6: 334712.00 | F6: =E6*0.7 -> 234298.40 | G6: 100413.60
A7: 4 | B7: 王鲍镇 | C7: 343 | D7: 430 | E7: 367921.00 | F7: 257544.70 | G7: 110376.30
A8: 5 | B8: 合作镇 | C8: 323 | D8: 425 | E8: 345713.00 | F8: 241999.10 | G8: 103713.90
A9: 6 | B9: 海复镇 | C9: 249 | D9: 368 | E9: 315217.00 | F9: 220651.90 | G9: 94565.10
A10: 7 | B10: 近海镇 | C10: 248 | D10: 291 | E10: 257514.00 | F10: 180259.80 | G10: 77254.20
A11: 8 | B11: 寅阳镇 | C11: 264 | D11: 358 | E11: 321403.00 | F11: 224982.10 | G11: 96420.90
A12: 9 | B12: 惠萍镇 | C12: 228 | D12: 280 | E12: 249949.00 | F12: 174964.30 | G12: 74984.70
A13: 10 | B13: 东海镇 | C13: 370 | D13: 459 | E13: 399576.00 | F13: 279703.20 | G13: 119872.80
A14: 11 | B14: 启隆镇 | C14: 1 | D14: 3 | E14: 2646.00 | F14: 1852.20 | G14: 793.80
A15: 12 | B15: 启东经济开发区 | C15: 57 | D15: 75 | E15: 65520.00 | F15: 45864.00 | G15: 19656.00
A16: 13 | B16: 圆陀角旅游度假区 | C16: 49 | D16: 66 | E16: 53678.00 | F16: 37574.60 | G16: 16103.40
B17: 合计 | C17: =SUM(C4:C16) -> 2999 | D17: =SUM(D4:D16) -> 3867 | E17: =SUM(E4:E16) -> 3356000.00 | F17: 2349200.00 | G17: 1006800.00

Sheet 吕四
A1: 2025年10月农村低保“一卡通”补助市镇分担发放表
A2: 序号 | B2: 行政区划 | C2: 户数 | D2: 人数 | E2: 农村低保 | H2: 备注
E3: 小计 | F3: 市负担0% | G3: 镇负担100%
A4: 1 | B4: 吕四港镇 | C4: 511 | D4: 674 | E4: 584694.00 | F4: 0.00 | G4: 584694.00
B16: 合计 | C16: =SUM(C4:C15) -> 511 | D16: =SUM(D4:D15) -> 674 | E16: =SUM(E4:E15) -> 584694.00 | F16: =SUM(F4:F15) -> 0.00 | G16: =SUM(G4:G15) -> 584694.00

Sheet Sheet3
